lending/lending_fUSD_20240112
["ID","MTS","AMOUNT","RATE_DAILY","PERIOD"]
[311393801,1705075857720,-460.22942243,0.00022511,2]
[311393802,1705075857730,-387.66036478,0.00023,2]
[311393803,1705075857741,-671.79150043,0.00023,2]
[311393804,1705075857768,-692.98902573,0.00022658,2]
[311393805,1705075857826,-1386.66502002,0.00022658,2]
[311393806,1705075857836,-88022.36938706,0.00023,2]
[311393807,1705075858083,-203.02938773,0.00022508,2]
[311393808,1705075858092,-542.58158419,0.00022508,2]
[311393809,1705075858101,-3727.75230755,0.00022511,2]
[311393810,1705075858113,-668.91015,0.00022511,2]
[311393811,1705075858124,-228.02121963,0.00022511,2]
[311393812,1705075858133,-500.0,0.00022512,2]
[311393813,1705075858143,-1331.57895997,0.00023,2]
[311393814,1705075858159,-270.7880175,0.00023,2]
[311393815,1705075858171,-1552.80364407,0.00023,2]
[311393816,1705075858183,-555.49355396,0.00023,2]
[311393817,1705075858323,-4696.4400105,0.00022511,2]
[311393818,1705075858333,-650.93242009,0.00022511,2]
[311393819,1705075858343,-400.0,0.00022511,2]
[311393820,1705075858353,-500.0,0.00022786,2]
[311393821,1705075858362,-227327.68150786,0.00023,2]
[311393822,1705075858373,-665.1645,0.00023,2]
[311393823,1705075858385,-4849.13162414,0.00023,2]
[311393824,1705075858397,-8655.3326129,0.00023,2]
[311393825,1705075858414,-2338.33277488,0.00023,2]
[311393826,1705075858425,-2765.47453662,0.00023,2]
[311393827,1705075858437,-1757.0756929,0.00023,2]
[311393828,1705075858448,-33972.51511366,0.00023,2]
[311393829,1705075858463,-20626.44387474,0.00023,2]
[311393830,1705075858552,-1087.68105932,0.00022511,2]
[311393831,1705075858562,-13599.30254068,0.00023,2]
[311393832,1705075858573,-266.21595,0.00023,2]
[311393833,1705075858584,-1846.22522082,0.00023,2]
[311393834,1705075858594,-5683.65097974,0.00023,2]
[311393835,1705075858610,-896.34359331,0.00023,2]
[311393836,1705075858621,-1947.36255037,0.00023,2]
[311393837,1705075858632,-4993.56915204,0.00023,2]
[311393838,1705075858643,-5852.9547,0.00023,2]
[311393839,1705075858654,-1143.03667568,0.00023,2]
[311393840,1705075858666,-1510.54942384,0.00023,2]
[311393843,1705075859382,-500.0,0.0002251,2]
[311393844,1705075859391,-196.77812328,0.0002251,2]
[311393845,1705075859401,-159.23586212,0.0002251,2]
[311393846,1705075859410,-501.50504212,0.0002251,2]
[311393847,1705075859421,-1386.55738836,0.0002251,2]
[311393848,1705075859431,-278.70241203,0.0002251,2]
[311393849,1705075859440,-156.6856775,0.0002251,2]
[311393850,1705075859449,-285.16719726,0.0002251,2]
[311393851,1705075859458,-226.61823745,0.00022511,2]
[311393852,1705075859469,-236.17727712,0.00022511,2]
[311393853,1705075859478,-500.0,0.00022512,2]
[311393854,1705075859487,-500.0,0.00022512,2]
[311393855,1705075859496,-500.0,0.00022514,2]
[311393856,1705075859505,-500.0,0.00022784,2]
[311393857,1705075859514,-500.0,0.00022786,2]
[311393858,1705075859523,-500.0,0.00022786,2]
[311393859,1705075859533,-500.0,0.00022788,2]
[311393860,1705075859542,-3710.70927011,0.00023,2]
[311393861,1705075859583,-5245.56137131,0.00023,2]
[311393862,1705075859781,-265.35685706,0.00022509,2]
[311393863,1705075859790,-252.05322289,0.0002251,2]
[311393864,1705075859802,-1845.82653673,0.0002251,2]
[311393865,1705075859811,-203.19794191,0.0002251,2]
[311393866,1705075859820,-4267.19887316,0.0002251,2]
[311393868,1705075859830,-155.0,0.00022511,2]
[311393869,1705075859839,-155.0,0.00022513,2]
[311393870,1705075859848,-2079.65404575,0.000229,2]
[311393871,1705075859857,-13483.62260247,0.00023,2]
[311393872,1705075859888,-1006.10899707,0.0002251,2]
[311393873,1705075859898,-1219.56532293,0.00023,2]
[311393874,1705075859915,-2221.898,0.00023,2]
[311393875,1705075859946,-13300.0,0.00023,2]
[311393876,1705075860202,-600.91466307,0.00022513,2]
[311393877,1705075860221,-7436.54138644,0.00023,2]
[311393878,1705075861351,1933.4344,0.00022411,2]
[311393881,1705075861986,250.0,0.00021656,2]
[311393882,1705075862254,2157.841473,0.00022399,2]
[311393884,1705075863298,250.0,0.00022414,2]
[311393885,1705075863494,560.02043267,0.00020037,2]
[311393886,1705075864010,360.48151512,0.00018238,2]
[311393887,1705075864086,235.6930786,0.00021658,2]
[311393888,1705075864471,1597.72739359,0.0001801,2]
[311393889,1705075865150,401.90417909,0.00021837,2]
[311393891,1705075865284,205.0,0.00021839,2]
[311393892,1705075865614,784.04,0.00021999,2]
[311393893,1705075865658,155.4056809,0.00020518,2]
[311393894,1705075866165,621.33628027,0.00021886,2]
[311393895,1705075866203,447.01518678,0.0002029,2]
[311393896,1705075866849,1000.0,0.00022114,2]
[311393897,1705075867090,155.0,0.00020261,2]
[311393898,1705075867250,338.72,0.00020082,2]
[311393899,1705075867324,155.72027097,0.00020698,2]
[311393900,1705075867363,3123.01195947,0.00021848,2]
[311393903,1705075868291,338.72,0.00022346,2]
[311393904,1705075869839,3187.14443099,0.00022078,2]
[311393905,1705075869913,2176.62447328,0.00022287,2]
[311393907,1705075870600,155.0,0.00021836,2]
[311393908,1705075877683,163.53,0.00021986,2]
[311393909,1705075879135,560.02043267,0.00020468,2]
[311393910,1705075879624,401.90417909,0.00021837,2]
[311393911,1705075882337,500.0,0.00021978,2]
[311393912,1705075882875,1000.0,0.00021835,2]
[311393913,1705075883250,1597.72739359,0.0001801,2]
[311393914,1705075883989,625.45857324,0.0002161,2]
[311393915,1705075884503,360.48151512,0.00018008,2]
[311393916,1705075886135,447.01518678,0.00020034,2]
[311393917,1705075887376,3123.01195947,0.00021385,2]
[311393918,1705075887889,2176.62447328,0.00022287,2]
[311393919,1705075889075,251.63244978,0.00020261,2]
[311393920,1705075891825,3187.14443099,0.0002161,2]
[311393921,1705075894228,300.0,0.00021829,2]
[311393922,1705075901258,1597.72739359,0.0001801,2]
[311393923,1705075902146,446.08382349,0.00020034,2]
[311393924,1705075902228,155.0,0.0002,2]
[311393925,1705075902875,1000.0,0.00021835,2]
[311393926,1705075903127,262.01063008,0.00020034,2]
[311393938,1705075905359,3123.01195947,0.00021385,2]
[311393940,1705075906513,360.48151512,0.00018008,2]
[311393941,1705075909415,1021.99046013,0.00021829,2]
[311393942,1705075909594,155.0,0.00021829,2]
[311393943,1705075909799,156.62101118,0.00021829,2]
[311393944,1705075909905,2176.62447328,0.00021611,2]
[311393945,1705075910312,50510.78554689,0.00021829,2]
[311393946,1705075911209,155.0,0.00021829,2]
[311393947,1705075911287,155.0,0.00021829,2]
[311393948,1705075912250,531.87539742,0.00021829,2]
[311393949,1705075912525,15689.27549142,0.00021829,2]
[311393950,1705075912615,1096.4632242,0.00021829,2]
[311393951,1705075913285,291.82081919,0.00021829,2]
[311393957,1705075913793,1892.11622104,0.00021829,2]
[311393958,1705075913821,3187.14443099,0.00021608,2]
[311393959,1705075913999,155.0,0.00021829,2]
[311393960,1705075915180,543.69034289,0.00021829,2]
[311393961,1705075915911,609.2614061,0.00021829,2]
[311393962,1705075916130,401.90417909,0.00021174,2]
[311393963,1705075916602,5186.35262149,0.00021829,2]
[311393964,1705075916661,18948.40984176,0.00021829,2]
[311393965,1705075916901,532.75409653,0.00021829,2]
[311393966,1705075917650,360.79817652,0.00021829,2]
[311393967,1705075918603,155.0,0.00021829,2]
[311393973,1705075919261,1597.72739359,0.00017463,2]
[311393974,1705075919379,282.90032781,0.00021829,2]
[311393975,1705075919514,7417.37716852,0.00021829,2]
[311393976,1705075920105,155.0,0.0002,2]
[311393977,1705075921418,1475.37690021,0.00021383,2]
[311393978,1705075924313,50510.78554689,0.00021829,2]
[311393979,1705075924932,155.0,0.00021829,2]
[311393986,1705075925804,156.62101118,0.00021829,2]
[311393989,1705075927192,543.69034289,0.00021829,2]
[311393990,1705075927441,1021.99046013,0.00021829,2]
[311393991,1705075927602,155.0,0.00021829,2]
[311393993,1705075927939,2176.62447328,0.00021611,2]
[311393994,1705075928571,381.67808498,0.00018006,2]
[311393995,1705075928598,667.13658072,0.00021829,2]
[311393996,1705075928937,155.0,0.00021829,2]
[311393997,1705075929799,1892.11622104,0.00021829,2]
[311393998,1705075930026,650.93242009,0.00022501,2]
[311393999,1705075930575,15689.27549142,0.00021829,2]
[311394007,1705075931300,291.82081919,0.00021829,2]
[311394008,1705075931826,834.87660687,0.00021608,2]
[311394009,1705075932138,221.29234594,0.00021174,2]
[311394010,1705075932265,534.43291931,0.00021829,2]
[311394011,1705075932412,608.8671776,0.00021829,2]
[311394012,1705075933523,7409.09626918,0.00021829,2]
[311394013,1705075934203,1152.96,0.00021798,2]
[311394014,1705075934247,186.62869089,0.00021829,2]
[311394015,1705075934286,523.33688238,0.00022501,2]
[311394016,1705075934596,3067.23877882,0.00021829,2]
[311394017,1705075934674,12194.69822158,0.00021829,2]
[311394018,1705075935376,282.90032781,0.00021829,2]
[311394019,1705075936080,155.75403448,0.0002,2]
[311394020,1705075936660,155.40021674,0.00021829,2]
[311394021,1705075936907,533.66240983,0.00021829,2]
[311394022,1705075937259,344.50213829,0.00017463,2]
[311394023,1705075937649,360.79817652,0.00021829,2]
[311394028,1705075938917,292.87,0.00021948,2]
[311394029,1705075939022,292.87,0.00022008,2]
[311394030,1705075939216,292.87,0.00022068,2]
[311394031,1705075939468,292.87,0.00022128,2]
[311394032,1705075939706,292.87,0.00022188,2]
[311394033,1705075940317,33376.76500665,0.00021829,2]
[311394034,1705075940342,17134.02054024,0.00021829,2]
[311394035,1705075940477,292.87,0.00022249,2]
[311394036,1705075940737,292.87,0.00022309,2]
[311394037,1705075940927,292.87,0.00022369,2]
[311394038,1705075941199,292.87,0.00022429,2]
[311394039,1705075942034,156.62101118,0.00021829,2]
[311394040,1705075942114,292.87,0.00022489,2]
[311394041,1705075943066,2897.604,0.00022411,2]
[311394052,1705075944975,155.0,0.00021829,2]
[311394053,1705075946950,156.83354528,0.00021829,2]
[311394054,1705075947180,543.69034289,0.00021829,2]
[311394055,1705075947822,2795.8827,0.00022411,2]
[311394056,1705075949359,291.82081919,0.00021829,2]
[311394057,1705075949799,1447.13769558,0.00021829,2]
[311394058,1705075950523,15689.27549142,0.00021829,2]
[311394059,1705075951440,495.23194575,0.00021829,2]
[311394066,1705075957801,156.53151362,0.00021829,2]
[311394072,1705075959654,360.79817652,0.00021829,2]
[311394073,1705075960313,37245.46655083,0.00021829,2]
[311394074,1705075961397,282.90032781,0.00021829,2]
[311394075,1705075964929,155.0,0.00021829,2]
[311394076,1705075965274,543.69034289,0.00021829,2]
[311394077,1705075965614,154.37,0.00021688,2]
[311394078,1705075966069,154.37,0.00027111,120]
[311394079,1705075966540,10598.02269833,0.00021829,2]
[311394080,1705075966596,154.37,0.00029822,120]
[311394081,1705075967313,341.63773526,0.00021829,2]
[311394082,1705075967556,532.26466838,0.000225,2]
[311394083,1705075968897,155.0,0.000225,2]
[311394095,1705075977166,542.58158419,0.000225,2]
[311394096,1705075979386,318.9689222,0.00021829,2]
[311394097,1705075980438,1362.20209022,0.000225,2]
[311394098,1705075980977,155.0,0.000225,2]
[311394099,1705075982502,386.53762894,0.000225,2]
[311394100,1705075983662,361.37497441,0.00021829,2]
[311394101,1705075985233,595.47775828,0.00021829,2]
[311394102,1705075987066,1000.0,0.00022411,2]
[311394103,1705075994954,155.40247535,0.00022283,2]
[311394104,1705075998327,155.0,0.000225,2]
[311394105,1705075998957,155.0,0.000225,2]
[311394106,1705075999386,2206.26,0.00021721,2]
[311394107,1705075999520,1707.23061659,0.000225,2]
[311394108,1705076000598,158.48029498,0.000225,2]
[311394109,1705076001720,2136.98369019,0.000225,2]
[311394110,1705076014828,259.92,0.00021721,2]
[311394111,1705076016415,171.11,0.00016712,2]
[311394131,1705076020625,312.87272009,0.00021918,2]
[311394132,1705076025848,200.0,0.00021721,2]
[311394137,1705076029163,175.2304,0.00022412,2]
[311394142,1705076030734,737.6,0.00021721,2]
[311394154,1705076034017,5327.1431858,0.000225,2]
[311394155,1705076035546,900.74,0.00021738,2]
[311394165,1705076043003,1004.65788118,0.00022403,2]
[311394166,1705076043506,1004.65788118,0.00022408,2]
[311394167,1705076043540,351.27,0.00021918,2]
[311394168,1705076047648,750.0,0.00021729,2]
[311394169,1705076051607,23900.0,0.00021729,2]
[311394170,1705076052371,2965.7872,0.00022403,2]
[311394171,1705076054266,150.0,0.00022486,2]
[311394172,1705076060567,555.75,0.00021706,2]
[311394173,1705076066718,175.3,0.00017364,2]
[311394204,1705076084230,2719.31,0.00021879,2]
[311394206,1705076108642,523.20663738,0.000225,2]
[311394207,1705076110258,161.5917949,0.000225,2]
[311394208,1705076123108,319.82734471,0.00022412,2]
[311394209,1705076134127,195.22,0.00021706,2]
[311394210,1705076134591,195.22,0.00021821,2]
[311394211,1705076135052,195.22,0.00021935,2]
[311394212,1705076135842,195.22,0.00022049,2]
[311394213,1705076136513,195.22,0.00022163,2]
[311394214,1705076138787,195.22,0.00022278,2]
[311394215,1705076139153,195.22,0.00022392,2]
[311394216,1705076145342,4335.13,0.00021669,2]
[311394217,1705076156647,150.0,0.00021669,2]
[311394218,1705076175612,2705.0,0.00021669,2]
[311394219,1705076179349,1500.0,0.00031,120]
[311394220,1705076181983,159.52,0.00021885,2]
[311394221,1705076187494,155.0,0.000225,2]
[311394222,1705076187723,155.0,0.000225,2]
[311394223,1705076191014,1201.64696251,0.000225,2]
[311394224,1705076192155,198.97051036,0.000225,2]
[311394225,1705076193251,150.0,0.00022,2]
[311394226,1705076195351,987.23356394,0.00031,120]
[311394227,1705076226933,182.9,0.00021583,2]
[311394228,1705076231610,500.0,0.00021668,2]
[311394229,1705076237801,155.0,0.000225,2]
[311394230,1705076245851,244.64133608,0.000225,2]
[311394231,1705076256508,200.0,0.00021668,2]
[311394232,1705076267724,2000.0,0.00021668,2]
[311394233,1705076269238,750.0,0.000192,2]
[311394234,1705076283146,1426.08,0.00021668,2]
[311394235,1705076293673,150.0,0.00022,2]
[311394236,1705076309505,383.76405384,0.000225,2]
[311394237,1705076320104,963.5,0.00021655,2]
[311394238,1705076339126,250.0,0.00021655,2]
[311394239,1705076339363,167.66,0.00021655,2]
[311394240,1705076350870,1060.71,0.00021655,2]
[311394241,1705076363426,770.92,0.00019751,2]
[311394242,1705076364078,770.92,0.00022014,2]
[311394243,1705076372004,183.2,0.00021635,2]
[311394244,1705076385462,835.719895,0.00021547,2]
[311394245,1705076392853,155.0,0.000225,2]
[311394246,1705076393678,155.0,0.000225,2]
[311394247,1705076417414,576.48,0.00021655,2]
[311394248,1705076418030,988.75920312,0.000225,2]
[311394249,1705076423910,154.14,0.00021785,2]
[311394250,1705076424305,154.14,0.00021848,2]
[311394251,1705076424937,154.14,0.00021911,2]
[311394252,1705076425219,154.14,0.00021974,2]
[311394253,1705076425799,154.14,0.00022037,2]
[311394254,1705076425876,473.8673768,0.000225,2]
[311394255,1705076426160,154.14,0.000221,2]
[311394256,1705076426418,154.14,0.00022163,2]
[311394257,1705076426667,154.14,0.00022226,2]
[311394258,1705076426892,154.14,0.00022289,2]
[311394259,1705076427448,154.14,0.00022352,2]
[311394260,1705076427900,154.14,0.00022416,2]
[311394261,1705076428417,154.14,0.00022479,2]
[311394262,1705076433901,204.0,0.00022083,2]
[311394263,1705076438355,1483.44856691,0.000225,2]
[311394264,1705076441331,300.0,0.000223,8]
[311394265,1705076443408,600.0,0.000224,8]
[311394266,1705076443817,40400.3235,0.0002241,2]
[311394267,1705076444739,556.5869,0.0002241,2]
[311394268,1705076445374,1000.0,0.00021833,2]
[311394269,1705076453684,318.01504645,0.00021383,2]
[311394270,1705076459659,403.07344523,0.00022499,2]
[311394271,1705076460497,364.14560895,0.00022499,2]
[311394272,1705076460801,254.24373235,0.00022499,2]
[311394273,1705076461684,171.11,0.00016712,2]
[311394274,1705076461718,300.0,0.000225,2]
[311394275,1705076461820,150.0,0.000225,2]
[311394276,1705076461916,222.50250077,0.00022274,4]
[311394277,1705076462490,155.20238462,0.00022499,2]
[311394278,1705076464213,950.84386879,0.00022499,2]
[311394279,1705076465558,156.04013159,0.00022499,2]
[311394280,1705076465900,996.6260501,0.00021599,2]
[311394281,1705076466472,701.92899337,0.00022499,2]
[311394282,1705076467669,5437.35042652,0.00022499,2]
[311394283,1705076468943,923.3781392,0.00021824,2]
[311394284,1705076469786,10513.08241403,0.000225,2]
[311394285,1705076470684,171.98366677,0.00022499,2]
[311394286,1705076479370,155.0,0.00022499,2]
[311394287,1705076483015,9147.2868,0.0002241,2]
[311394288,1705076485522,214.91665787,0.00022499,2]
[311394289,1705076485664,5437.35042652,0.00022499,2]
[311394290,1705076491358,10513.08241403,0.00022499,2]
[311394291,1705076492513,518.48,0.0002161,2]
[311394292,1705076493383,155.0,0.00022499,2]
[311394293,1705076495914,3524.57297968,0.00022499,2]
[311394294,1705076500399,409.92,0.00021607,2]
[311394295,1705076501621,387.98838985,0.0002241,2]
[311394296,1705076501749,155.0,0.00022499,2]
[311394297,1705076502362,473.8673768,0.00022499,2]
[311394298,1705076508046,4630.74851402,0.00022499,2]
[311394299,1705076508571,2612.76863363,0.00022499,2]
[311394300,1705076510803,5842.06,0.00021668,2]
[311394301,1705076529122,23900.0,0.00021668,2]
[311394302,1705076541319,3365.49817661,0.00022499,2]
[311394303,1705076549830,640.7203,0.00022401,2]
[311394304,1705076559345,472.70124021,0.00022499,2]
[311394305,1705076565002,4890.53780485,0.00022499,2]
[311394306,1705076565250,3672.84023195,0.00022499,4]
[311394307,1705076566833,6430.93693528,0.00022499,2]
[311394308,1705076567953,155.0,0.00022499,2]
[311394309,1705076575742,215.11753073,0.00022482,2]
[311394310,1705076575999,2136.98369019,0.00022499,2]
[311394311,1705076578307,1912.9258164,0.00022499,2]
[311394312,1705076578866,473.8673768,0.00022499,2]
[311394313,1705076578905,328.90774938,0.00022408,2]
[311394314,1705076583897,328.90774938,0.00022487,2]
[311394315,1705076591094,517.9059,0.00022407,2]
[311394316,1705076597219,181.0,0.00022499,2]
[311394317,1705076598446,200.0,0.00021552,2]
[311394318,1705076604193,270.50240422,0.00022499,2]
[311394319,1705076612658,246.39576141,0.00022499,2]
[311394320,1705076613310,387.98838984,0.00022408,2]
[311394321,1705076619536,150.4,0.00021561,2]
[311394322,1705076619967,150.4,0.00021715,2]
[311394323,1705076620210,150.4,0.00021869,2]
[311394324,1705076620642,150.4,0.00022023,2]
[311394325,1705076620852,150.4,0.00022177,2]
[311394326,1705076621136,150.4,0.00022331,2]
[311394327,1705076621366,150.4,0.00022485,2]
[311394328,1705076628762,153.88,0.00021839,2]
[311394329,1705076628943,153.88,0.00022096,2]
[311394330,1705076629148,153.88,0.00022352,2]
[311394331,1705076630625,361.2821615,0.00022499,2]
[311394332,1705076632199,24317.54610841,0.000225,2]
[311394333,1705076632658,406.04618719,0.00022499,2]
[311394334,1705076633959,166.09421546,0.00022402,2]
[311394335,1705076639031,166.09421541,0.00022464,2]
[311394336,1705076641918,1000.0,0.00022409,2]
[311394337,1705076642378,155.0,0.00022499,2]
[311394338,1705076644946,484.62623506,0.00022499,2]
[311394339,1705076650183,462.12924848,0.000225,2]
[311394340,1705076656384,209.07709934,0.00022499,2]
[311394341,1705076659370,473.8673768,0.00022499,2]
[311394342,1705076671429,-900.0,0.000225,8]
[311394343,1705076673665,239.50668344,0.00022499,2]
[311394344,1705076701529,358.23887372,0.00022411,2]
[311394345,1705076701553,1497.74555716,0.00022411,2]
[311394346,1705076701576,1497.74555716,0.00022411,2]
[311394347,1705076701600,1497.74555716,0.00022411,2]
[311394348,1705076701623,148.5244548,0.00022411,2]
[311394349,1705076709235,500.0,0.00021623,2]
[311394350,1705076711388,5169.98155946,0.000225,2]
[311394351,1705076716020,214.2123118,0.00022483,2]
[311394352,1705076718517,500.0,0.00022409,2]
[311394353,1705076739595,177347.11112827,0.000225,2]
[311394354,1705076741841,200.0,0.00021623,2]
[311394355,1705076743816,250.0,0.000225,2]
[311394356,1705076744405,250.0,0.000225,2]
[311394357,1705076744679,250.0,0.000225,2]
[311394358,1705076744985,250.0,0.000225,2]
[311394359,1705076745300,250.0,0.000225,2]
[311394360,1705076745597,250.0,0.000225,2]
[311394361,1705076745915,250.7,0.000225,2]
[311394362,1705076748847,1906.90757275,0.000225,2]
[311394363,1705076752279,155.0,0.000225,2]
[311394364,1705076754961,7774.2456972,0.000225,2]
[311394365,1705076755343,394.48820479,0.00022282,2]
[311394366,1705076755862,41736.63391685,0.000225,2]
[311394367,1705076757318,155.0,0.000225,2]
[311394368,1705076757622,220.04831573,0.000225,2]
[311394369,1705076758775,178.42003432,0.00022282,2]
[311394370,1705076759070,155.0,0.00022282,2]
[311394371,1705076761772,3360.15710169,0.000225,4]
[311394372,1705076764148,224.32848687,0.00022282,4]
[311394373,1705076766787,2000.0,0.00021623,2]
[311394374,1705076767053,155.0,0.000225,2]
[311394375,1705076769240,833.60848674,0.000225,2]
[311394376,1705076786933,335.956,0.00022404,2]
[311394377,1705076789039,161.58755497,0.000225,2]
[311394378,1705076789513,454.1076238,0.00022407,2]
[311394379,1705076789639,42953.03742992,0.000225,2]
[311394380,1705076794559,454.10762373,0.00022486,2]
[311394381,1705076800471,39797.5924,0.00022407,2]
[311394382,1705076801474,2617.16595295,0.000225,2]
[311394383,1705076802388,3786.5563,0.00022404,2]
[311394384,1705076812176,186.94,0.00021554,2]
[311394385,1705076814409,764.47,0.00019637,2]
[311394386,1705076814770,764.47,0.00021901,2]
[311394387,1705076822096,558.15325618,0.000225,2]
[311394388,1705076828346,1176.81539499,0.000225,2]
[311394389,1705076832100,-4456.59209002,0.00022501,2]
[311394390,1705076836082,396.47081261,0.00022392,2]
[311394391,1705076837718,100000.0,0.00022407,2]
[311394392,1705076842241,311.43669732,0.00021825,2]
[311394393,1705076846063,5000.0,0.00022411,2]
[311394394,1705076851279,1987.46405356,0.000225,2]
[311394395,1705076854048,95376.251,0.00022404,2]
[311394396,1705076872447,288.24,0.00021548,2]
[311394399,1705076884695,176.84,0.00021561,2]
[311394400,1705076893718,58890.7799,0.00022401,2]
[311394401,1705076894479,322.1890139,0.00022407,2]
[311394402,1705076895681,952.24724323,0.00022411,2]
[311394403,1705076895934,1671.83819161,0.000225,2]
[311394404,1705076902106,562.17858949,0.00022389,2]
[311394405,1705076902962,1443.78449924,0.00022277,2]
[311394406,1705076903536,1157.52,0.00021533,2]
[311394407,1705076906883,1207.36039064,0.00022499,2]
[311394408,1705076908511,485.61010387,0.00022277,2]
[311394411,1705076914162,300.93559721,0.00022499,2]
[311394412,1705076916332,11667.66899712,0.00022499,2]
[311394413,1705076918824,245000.0,0.00022407,2]
[311394416,1705076926400,155.0,0.00022499,2]
[311394417,1705076929416,4267.19887316,0.00022499,2]
[311394418,1705076929462,363.66366697,0.00022499,2]
[311394419,1705076931683,8558.1867,0.00022404,2]
[311394420,1705076932097,2617.16595295,0.00022499,2]
[311394421,1705076933021,236.17727712,0.00022499,2]
[311394422,1705076934122,22623.08727404,0.00022499,2]
[311394423,1705076935384,265.185965,0.00022499,2]
[311394424,1705076936356,189.03,0.00021699,2]
[311394425,1705076936522,189.03,0.00021758,2]
[311394426,1705076936783,189.03,0.00021818,2]
[311394427,1705076936812,250.0,0.00021561,2]
[311394428,1705076937043,189.03,0.00021878,2]
[311394429,1705076937323,189.03,0.00021937,2]
[311394430,1705076937533,189.03,0.00021997,2]
[311394431,1705076937740,189.03,0.00022056,2]
[311394432,1705076938180,189.03,0.00022116,2]
[311394433,1705076938427,189.03,0.00022175,2]
[311394434,1705076938676,189.03,0.00022235,2]
[311394435,1705076938915,189.03,0.00022294,2]
[311394436,1705076939129,189.03,0.00022354,2]
[311394437,1705076939339,189.03,0.00022413,2]
[311394438,1705076939582,189.03,0.00022473,2]
[311394439,1705076940177,155.0,0.00022499,2]
[311394440,1705076955427,196.7064931,0.000225,2]
[311394441,1705076958061,1024349.8348471,0.000225,2]
[311394442,1705076962772,5000.0,0.00022411,2]
[311394443,1705076963885,5577.28445236,0.000225,2]
[311394444,1705076971585,1000.0,0.00022407,2]
[311394445,1705076973331,220.15288729,0.000225,2]
[311394446,1705076975426,158.48029498,0.000225,2]
[311394447,1705076980569,2304.07734728,0.000225,2]
[311394448,1705076980619,8005.6872,0.00022407,2]
[311394449,1705076984388,220.79925735,0.000225,2]
[311394462,1705076990109,630.33091512,0.000225,2]
[311394476,1705076992831,11667.66899712,0.000225,2]
[311394477,1705076993684,23900.0,0.00021534,2]
[311394478,1705077001927,300.0,0.000225,2]
[311394479,1705077006339,326.59887866,0.00022407,2]
[311394480,1705077010733,2500.0,0.00022407,2]
[311394499,1705077015719,150.0,0.00022262,2]
[311394500,1705077017620,1050.52164541,0.00022277,2]
[311394501,1705077017929,100000.0,0.00022407,2]
[311394502,1705077026770,1120.68099406,0.00022407,2]
[311394509,1705077032707,1120.68099406,0.00022477,2]
[311394516,1705077033369,-418.79652286,0.000225,2]
[311394517,1705077033380,-15928.7548763,0.00022501,2]
[311394518,1705077033441,-2879.5,0.00022501,2]
[311394519,1705077033510,-2207.75555,0.00022501,2]
[311394520,1705077033584,-4415.58270806,0.00022501,2]
[311394521,1705077033597,-300.2996415,0.00022501,2]
[311394522,1705077033617,-30908.43115406,0.00022501,2]
[311394523,1705077033639,-13287.79480606,0.00022501,2]